[Event "FIDE Grand Swiss 2023"]
[Site "Villa Marina, Douglas, Isle of Man"]
[Date "2023.11.05"]
[Round "11.3"]
[White "Giri, Anish"]
[Black "Esipenko, Andrey"]
[Result "1-0"]
[WhiteElo "2760"]
[BlackElo "2683"]
[EventDate "2023.10.25"]
[ECO "D35"]
[PlyCount "65"]
[BlackClock "00:00:09"]
[BlackFideId "24175439"]
[TimeControl "40/100 + 20/50 + 15 + 30s/move"]
[WhiteClock "00:23:26"]
[WhiteFideId "24116068"]

1.d4 {[%clk 01:40:56][%emt 00:00:04]} 1...d5 {[%clk 01:40:46][%emt 00:00:15]} 
2.c4 {[%clk 01:41:19][%emt 00:00:05]} 2...e6 {[%clk 01:41:04][%emt 00:00:13]} 
3.Nc3 {[%clk 01:41:44][%emt 00:00:06]} 3...Be7 {[%clk 01:41:14][%emt 00:00:20]} 
4.cxd5 {[%clk 01:40:33][%emt 00:01:40]} 4...exd5 {[%clk 01:41:37][%emt
00:00:08]} 5.Bf4 {[%clk 01:40:56][%emt 00:00:07]} 5...Nf6 {[%clk 01:41:56][%emt
00:00:11]} 6.e3 {[%clk 01:40:19][%emt 00:01:07]} 6...Bf5 {[%clk 01:41:27][%emt
00:00:58]} 7.Nge2 {[%clk 01:33:17][%emt 00:07:31]} 7...O-O {[%clk 01:41:06][%emt
00:00:53]} 8.Rc1 {[%clk 01:23:53][%emt 00:09:54]} 8...c5 {[%clk 01:41:15][%emt
00:00:21]} 9.dxc5 {[%clk 01:24:19][%emt 00:00:04]} 9...Bxc5 {[%clk
01:41:38][%emt 00:00:06]} 10.Nxd5 {[%clk 01:24:47][%emt 00:00:03]} 10...Nxd5 
{[%clk 01:42:01][%emt 00:00:07]} 11.Rxc5 {[%clk 01:25:15][%emt 00:00:02]} 
11...Be6 {[%clk 01:42:24][%emt 00:00:06]} 12.Nc3 {[%clk 01:23:07][%emt
00:02:39]} 12...Nxf4 {[%clk 01:30:48][%emt 00:12:05]} 13.Qxd8 {[%clk
01:23:12][%emt 00:00:25]} 13...Rxd8 {[%clk 01:31:14][%emt 00:00:04]} 14.exf4 
{[%clk 01:23:39][%emt 00:00:03]} 14...Nd7 {[%clk 01:31:38][%emt 00:00:07]} 
15.Rc7 {[%clk 01:23:14][%emt 00:00:55]} 15...Nf6 {[%clk 01:32:00][%emt
00:00:07]} 16.f3 {[%clk 01:09:53][%emt 00:13:52]} 16...h5 {[%clk 01:14:05][%emt
00:18:23]} 17.Rxb7 {[%clk 00:48:33][%emt 00:21:52]} 17...Rd4 {[%clk
00:39:02][%emt 00:35:33]} 18.Be2 {[%clk 00:43:22][%emt 00:05:40]} 18...a5 
{[%clk 00:19:50][%emt 00:19:42]} ( 18...Rxf4 ) 19.Kf2 {[%clk 00:35:46][%emt
00:08:07]} 19...Rb4 {[%clk 00:12:22][%emt 00:07:58]} 20.Rb5 {[%clk
00:35:37][%emt 00:00:38]} 20...Bd7 {[%clk 00:12:46][%emt 00:00:06]} 21.a3 
{[%clk 00:34:12][%emt 00:01:56]} 21...Bxb5 {[%clk 00:12:14][%emt 00:01:02]} 
22.axb4 {[%clk 00:34:33][%emt 00:00:09]} 22...Bxe2 {[%clk 00:12:40][%emt
00:00:03]} 23.Nxe2 {[%clk 00:34:59][%emt 00:00:04]} 23...axb4 {[%clk
00:12:39][%emt 00:00:32]} 24.Rd1 {[%clk 00:34:58][%emt 00:00:31]} 24...Rc8 
{[%clk 00:10:06][%emt 00:03:02]} 25.Rd4 {[%clk 00:34:01][%emt 00:01:28]} 
25...Rc2 {[%clk 00:09:25][%emt 00:01:10]} 26.Rxb4 {[%clk 00:33:39][%emt
00:00:53]} 26...Nd5 {[%clk 00:09:04][%emt 00:00:49]} 27.Rb8+ {[%clk
00:30:41][%emt 00:03:30]} 27...Kh7 {[%clk 00:09:32][%emt 00:00:02]} 28.g3 
{[%clk 00:31:03][%emt 00:00:07]} 28...h4 {[%clk 00:04:56][%emt 00:05:05]} 
29.Rb5 {[%clk 00:28:42][%emt 00:02:52]} 29...Nc7 {[%clk 00:05:17][%emt
00:00:09]} 30.Rb7 {[%clk 00:27:49][%emt 00:01:24]} 30...f5 {[%clk 00:02:35][%emt
00:03:11]} 31.Ke3 {[%clk 00:27:06][%emt 00:01:13]} 31...Ne6 {[%clk
00:01:54][%emt 00:01:11]} 32.g4 {[%clk 00:26:17][%emt 00:01:20]} 32...Kg8 
{[%clk 00:00:38][%emt 00:01:46]} 33.gxf5 {[%clk 00:23:26] [%emt 00:03:20]} 1-0

[Event "FIDE Grand Swiss 2023"]
[Site "Villa Marina, Douglas, Isle of Man"]
[Date "2023.11.05"]
[Round "11.18"]
[White "Saric, Ivan"]
[Black "Nihal, Sarin"]
[Result "1/2-1/2"]
[WhiteElo "2647"]
[BlackElo "2694"]
[EventDate "2023.10.25"]
[ECO "C50"]
[PlyCount "124"]
[BlackFideId "25092340"]
[TimeControl "40/100 + 20/50 + 15 + 30s/move"]
[WhiteFideId "14508150"]

1.e4 {[%clk 01:40:58][%emt 00:00:01]} 1...e5 {[%clk 01:40:38][%emt 00:00:22]} 
2.Nf3 {[%clk 01:41:24][%emt 00:00:04]} 2...Nc6 {[%clk 01:41:03][%emt 00:00:05]} 
3.Bc4 {[%clk 01:41:42][%emt 00:00:13]} 3...Bc5 {[%clk 01:41:23][%emt 00:00:09]} 
4.Nc3 {[%clk 01:42:03][%emt 00:00:09]} 4...Nf6 {[%clk 01:41:43][%emt 00:00:09]} 
5.d3 {[%clk 01:42:30][%emt 00:00:05]} 5...h6 {[%clk 01:37:20][%emt 00:04:52]} 
6.O-O {[%clk 01:42:25][%emt 00:00:36]} 6...O-O {[%clk 01:33:20][%emt 00:04:30]} 
7.h3 {[%clk 01:42:23][%emt 00:00:32]} 7...d6 {[%clk 01:29:51][%emt 00:03:57]} 
8.Na4 {[%clk 01:42:40][%emt 00:00:14]} 8...Bb6 {[%clk 01:29:29][%emt 00:00:52]} 
9.a3 {[%clk 01:42:17][%emt 00:00:54]} 9...Bd7 {[%clk 01:27:28][%emt 00:02:30]} 
10.Nxb6 {[%clk 01:39:45][%emt 00:03:03]} 10...axb6 {[%clk 01:27:51][%emt
00:00:06]} 11.Re1 {[%clk 01:38:02][%emt 00:02:14]} 11...Re8 {[%clk
01:27:58][%emt 00:00:22]} 12.c3 {[%clk 01:37:43][%emt 00:00:49]} 12...Be6 
{[%clk 01:24:55][%emt 00:03:32]} 13.Bb5 {[%clk 01:35:25][%emt 00:02:49]} 
13...Bd7 {[%clk 01:25:21][%emt 00:00:05]} 14.a4 {[%clk 01:20:32][%emt 00:15:24]} 
14...Ne7 {[%clk 01:24:32][%emt 00:01:18]} 15.Be3 {[%clk 01:20:21][%emt
00:00:40]} 15...Ng6 {[%clk 01:23:19][%emt 00:01:43]} 16.Bxd7 {[%clk
01:12:34][%emt 00:08:18]} 16...Qxd7 {[%clk 01:23:42][%emt 00:00:06]} 17.c4 
{[%clk 01:12:57][%emt 00:00:09]} 17...Nh7 {[%clk 01:15:45][%emt 00:08:25]} 
18.b3 {[%clk 01:06:44][%emt 00:06:43]} 18...f5 {[%clk 00:54:24][%emt 00:21:51]} 
19.exf5 {[%clk 01:07:02][%emt 00:00:13]} 19...Qxf5 {[%clk 00:54:47][%emt
00:00:06]} 20.d4 {[%clk 01:06:29][%emt 00:01:03]} 20...e4 {[%clk 00:53:18][%emt
00:01:59]} 21.Nd2 {[%clk 01:06:04][%emt 00:00:55]} 21...Nf6 {[%clk
00:52:27][%emt 00:01:22]} 22.Nf1 {[%clk 01:00:09][%emt 00:06:25]} 22...Nh4 
{[%clk 00:50:31][%emt 00:02:25]} 23.Ng3 {[%clk 00:59:55][%emt 00:00:44]} 
23...Qg6 {[%clk 00:50:32][%emt 00:00:29]} 24.d5 {[%clk 00:59:00][%emt 00:01:27]} 
24...Re7 {[%clk 00:34:57][%emt 00:16:04]} 25.Bd4 {[%clk 00:58:02][%emt
00:01:29]} 25...Rf8 {[%clk 00:34:24][%emt 00:01:02]} 26.Ra2 {[%clk
00:58:11][%emt 00:00:21]} 26...h5 {[%clk 00:34:40][%emt 00:00:14]} 27.Re3 
{[%clk 00:50:52][%emt 00:07:49]} 27...Nxg2 {[%clk 00:29:42][%emt 00:05:28]} 
28.Kxg2 {[%clk 00:51:19][%emt 00:00:04]} 28...h4 {[%clk 00:30:06][%emt
00:00:05]} 29.Bxf6 {[%clk 00:50:46][%emt 00:01:03]} 29...Rxf6 {[%clk
00:30:31][%emt 00:00:05]} 30.Qh5 {[%clk 00:48:10][%emt 00:03:06]} 30...hxg3 
{[%clk 00:30:47][%emt 00:00:14]} 31.Qxg6 {[%clk 00:48:36][%emt 00:00:04]} 
31...Rxg6 {[%clk 00:31:12][%emt 00:00:05]} 32.fxg3 {[%clk 00:48:52][%emt
00:00:14]} 32...Rg5 {[%clk 00:31:37][%emt 00:00:06]} 33.h4 {[%clk 00:45:46][%emt
00:03:36]} 33...Rge5 {[%clk 00:31:24][%emt 00:00:42]} 34.Kh3 {[%clk
00:27:06][%emt 00:19:10]} 34...g6 {[%clk 00:30:06][%emt 00:01:48]} 35.Kg4 
{[%clk 00:24:35][%emt 00:03:00]} 35...Kg7 {[%clk 00:30:09][%emt 00:00:27]} 
36.Rf2 {[%clk 00:22:15][%emt 00:02:53]} 36...Re8 {[%clk 00:29:53][%emt
00:00:44]} 37.Rf1 {[%clk 00:22:28][%emt 00:00:17]} 37...R8e7 {[%clk
00:28:19][%emt 00:02:04]} 38.b4 {[%clk 00:18:30][%emt 00:04:28]} 38...Re8 
{[%clk 00:26:54][%emt 00:01:56]} 39.b5 {[%clk 00:18:37][%emt 00:00:23]} 
39...Ra8 {[%clk 00:23:14][%emt 00:04:10]} 40.Rf4 {[%clk 00:18:28][%emt
00:00:38]} 40...Rae8 {[%clk 00:23:24][%emt 00:00:20]} 41.Kh3 {[%clk
00:18:01][%emt 00:00:58]} 41...R8e7 {[%clk 00:41:23][%emt 00:32:30]} 42.g4 
{[%clk 01:06:56][%emt 00:01:35]} 42...c6 {[%clk 00:26:43][%emt 00:15:10]} 
43.bxc6 {[%clk 01:06:15][%emt 00:01:11]} 43...bxc6 {[%clk 00:26:56][%emt
00:00:17]} 44.dxc6 {[%clk 01:06:39][%emt 00:00:06]} 44...Rc7 {[%clk
00:27:21][%emt 00:00:04]} 45.g5 {[%clk 01:05:03][%emt 00:02:06]} 45...Rxc6 
{[%clk 00:26:34][%emt 00:01:17]} 46.Rexe4 {[%clk 01:05:24][%emt 00:00:09]} 
46...Rxe4 {[%clk 00:23:52][%emt 00:03:12]} 47.Rxe4 {[%clk 01:05:49][%emt
00:00:06]} 47...Rc7 {[%clk 00:24:17][%emt 00:00:04]} 48.Kg4 {[%clk
00:50:09][%emt 00:16:10]} 48...Ra7 {[%clk 00:24:23][%emt 00:00:24]} 49.h5 
{[%clk 00:50:36][%emt 00:00:04]} 49...Rxa4 {[%clk 00:20:27][%emt 00:04:26]} 
50.h6+ {[%clk 00:50:49][%emt 00:00:17]} 50...Kh7 {[%clk 00:20:27][%emt
00:00:29]} 51.Re7+ {[%clk 00:49:45][%emt 00:01:34]} 51...Kh8 {[%clk
00:20:48][%emt 00:00:09]} 52.Rg7 {[%clk 00:49:40][%emt 00:00:35]} 52...Rxc4+ 
{[%clk 00:21:05][%emt 00:00:13]} 53.Kf3 {[%clk 00:49:45][%emt 00:00:26]} 
53...Rc3+ {[%clk 00:16:13][%emt 00:05:21]} 54.Kf4 {[%clk 00:49:47][%emt
00:00:28]} 54...Rc4+ {[%clk 00:16:39][%emt 00:00:04]} 55.Ke3 {[%clk
00:50:13][%emt 00:00:04]} 55...Rc3+ {[%clk 00:15:59][%emt 00:01:09]} 56.Kd4 
{[%clk 00:50:07][%emt 00:00:38]} 56...Rc5 {[%clk 00:16:00][%emt 00:00:27]} 
57.Rxg6 {[%clk 00:50:07][%emt 00:00:31]} 57...b5 {[%clk 00:16:25][%emt
00:00:05]} 58.Ke4 {[%clk 00:22:06][%emt 00:28:31]} 58...b4 {[%clk 00:16:29][%emt
00:00:25]} 59.Kf4 {[%clk 00:22:08][%emt 00:00:29]} 59...b3 {[%clk 00:16:35][%emt
00:00:25]} 60.Rxd6 {[%clk 00:22:29][%emt 00:00:09]} 60...Rb5 {[%clk
00:17:02][%emt 00:00:03]} 61.Rd8+ {[%clk 00:22:46][%emt 00:00:12]} 61...Kh7 
{[%clk 00:17:27][%emt 00:00:05]} 62.Rd7+ {[%clk 00:23:14][%emt 00:00:03]} 
62...Kh8 {[%clk 00:17:49][%emt 00:00:07]} ( 62...Kh8 {[%clk 00:17:49][%emt
00:00:07]} 63.Ke4 {[%emt 00:00:58]} ) 1/2-1/2

[Event "FIDE Grand Swiss 2023"]
[Site "Villa Marina, Douglas, Isle of Man"]
[Date "2023.11.05"]
[Round "11.22"]
[White "Petrosyan, Manuel"]
[Black "Volokitin, Andrei"]
[Result "1/2-1/2"]
[WhiteElo "2604"]
[BlackElo "2664"]
[EventDate "2023.10.25"]
[ECO "B90"]
[PlyCount "63"]
[BlackFideId "14107090"]
[TimeControl "40/100 + 20/50 + 15 + 30s/move"]
[WhiteFideId "13300857"]

1.e4 {[%clk 01:38:48][%emt 00:02:11]} 1...c5 {[%clk 01:40:55][%emt 00:00:05]} 
2.Nf3 {[%clk 01:38:48][%emt 00:00:30]} 2...d6 {[%clk 01:41:20][%emt 00:00:05]} 
3.d4 {[%clk 01:39:03][%emt 00:00:14]} 3...cxd4 {[%clk 01:41:45][%emt 00:00:06]} 
4.Nxd4 {[%clk 01:39:29][%emt 00:00:04]} 4...Nf6 {[%clk 01:42:11][%emt 00:00:04]} 
5.Nc3 {[%clk 01:39:50][%emt 00:00:08]} 5...a6 {[%clk 01:42:37][%emt 00:00:04]} 
6.Bd3 {[%clk 01:39:57][%emt 00:00:25]} 6...g6 {[%clk 01:42:58][%emt 00:00:08]} 
7.f3 {[%clk 01:39:59][%emt 00:00:28]} 7...Qb6 {[%clk 01:43:17][%emt 00:00:11]} 
8.a3 {[%clk 01:39:52][%emt 00:00:37]} 8...Nc6 {[%clk 01:43:30][%emt 00:00:16]} 
9.Be3 {[%clk 01:40:14][%emt 00:00:08]} 9...e5 {[%clk 01:43:53][%emt 00:00:08]} 
10.Nf5 {[%clk 01:40:36][%emt 00:00:08]} 10...Qd8 {[%clk 01:44:20][%emt
00:00:04]} 11.Nh6 {[%clk 01:40:48][%emt 00:00:18]} 11...d5 {[%clk 01:32:27][%emt
00:12:22]} 12.exd5 {[%clk 01:40:05][%emt 00:01:13]} 12...Nxd5 {[%clk
01:32:53][%emt 00:00:04]} 13.Nxd5 {[%clk 01:40:26][%emt 00:00:09]} 13...Qxd5 
{[%clk 01:33:17][%emt 00:00:07]} 14.Be4 {[%clk 01:40:47][%emt 00:00:08]} 
14...Qxd1+ {[%clk 01:32:04][%emt 00:01:42]} 15.Rxd1 {[%clk 01:39:12][%emt
00:02:06]} 15...Be6 {[%clk 01:29:42][%emt 00:02:52]} 16.g4 {[%clk 01:36:05][%emt
00:03:36]} 16...Rc8 {[%clk 01:20:58][%emt 00:09:14]} 17.h4 {[%clk 01:36:30][%emt
00:00:06]} 17...f5 {[%clk 01:11:07][%emt 00:10:20]} 18.gxf5 {[%clk
01:36:17][%emt 00:00:44]} 18...Bxh6 {[%clk 01:11:33][%emt 00:00:05]} 19.Bxh6 
{[%clk 01:36:28][%emt 00:00:19]} 19...gxf5 {[%clk 01:11:58][%emt 00:00:05]} 
20.Bd3 {[%clk 01:34:46][%emt 00:02:12]} 20...Nd4 {[%clk 01:00:33][%emt
00:11:54]} 21.Kf2 {[%clk 01:33:20][%emt 00:01:55]} 21...Nxf3 {[%clk
01:00:58][%emt 00:00:05]} 22.Kxf3 {[%clk 01:30:55][%emt 00:02:56]} 22...e4+ 
{[%clk 01:01:22][%emt 00:00:06]} 23.Bxe4 {[%clk 01:20:56][%emt 00:10:29]} 
23...fxe4+ {[%clk 01:01:49][%emt 00:00:03]} 24.Kxe4 {[%clk 01:21:02][%emt
00:00:23]} 24...Rxc2 {[%clk 01:02:09][%emt 00:00:09]} 25.Rc1 {[%clk
01:04:34][%emt 00:16:58]} 25...Rxc1 {[%clk 00:58:01][%emt 00:04:39]} 26.Rxc1 
{[%clk 01:04:59]} ( 26.Rg1 {[%emt 00:00:05]} 26...Re1+ 27.Rxe1 {[%clk 01:04:59]} 
27...Kd7 {[%clk 00:58:10][%emt 00:00:21]} 28.Rc1 {[%clk 00:48:23]} 28...Rd8 
{[%emt 00:18:01]} 29.Bf4 Rc8 {[%clk 00:57:45]} 30.Rxc8 {[%emt 00:04:30]} 
30...Kxc8 {[%clk 00:58:13][%emt 00:00:01]} 31.h5 {[%clk 00:44:43][%emt
00:00:11]} 31...Bf7 {[%clk 00:58:36][%emt 00:00:07]} 32.h6 {[%clk 00:45:08][%emt
00:00:05]} 32...Kd7 {[%clk 00:59:01][%emt 00:00:05]} 33.Ke5 {[%clk
00:45:32][%emt 00:00:06]} 33...Kc6 {[%clk 00:59:25][%emt 00:00:05]} 34.Ke4 
{[%clk 00:45:57][%emt 00:00:16]} ) 26...Kd7 {[%clk 00:58:10] [%emt 00:00:26]} 
27.Bf4 {[%clk 00:48:23] [%emt 00:17:06]} 27...Rc8 {[%clk 00:57:45] [%emt
00:00:55]} 28.Rxc8 {[%emt 00:04:30]} 28...Kxc8 {[%clk 00:58:13] [%emt 00:00:01]} 
29.h5 {[%clk 00:44:43] [%emt 00:00:11]} 29...Bf7 {[%clk 00:58:36] [%emt
00:00:07]} 30.h6 {[%clk 00:45:08] [%emt 00:00:05]} 30...Kd7 {[%clk 00:59:01]
[%emt 00:00:05]} 31.Ke5 {[%clk 00:45:32] [%emt 00:00:06]} 31...Kc6 {[%clk
00:59:25] [%emt 00:00:05]} 32.Kd4 {[%clk 00:45:57]} 1/2-1/2

[Event "FIDE Grand Swiss 2023"]
[Site "Villa Marina, Douglas, Isle of Man"]
[Date "2023.11.05"]
[Round "11.25"]
[White "Shankland, Sam"]
[Black "Murzin, Volodar"]
[Result "1/2-1/2"]
[WhiteElo "2698"]
[BlackElo "2633"]
[EventDate "2023.10.25"]
[ECO "A15"]
[PlyCount "71"]
[BlackFideId "44155573"]
[TimeControl "40/100 + 20/50 + 15 + 30s/move"]
[WhiteFideId "2004887"]

1.Nf3 {[%clk 01:40:51][%emt 00:00:08]} 1...Nf6 {[%clk 01:40:44][%emt 00:00:16]} 
2.c4 {[%clk 01:41:03][%emt 00:00:18]} 2...e6 {[%clk 01:40:54][%emt 00:00:21]} 
3.b3 {[%clk 01:40:59][%emt 00:00:34]} 3...d5 {[%clk 01:40:08][%emt 00:01:16]} 
4.Bb2 {[%clk 01:41:22][%emt 00:00:07]} 4...Be7 {[%clk 01:40:25][%emt 00:00:12]} 
5.e3 {[%clk 01:41:24][%emt 00:00:28]} 5...O-O {[%clk 01:38:05][%emt 00:02:51]} 
6.Nc3 {[%clk 01:41:47][%emt 00:00:07]} 6...c5 {[%clk 01:36:14][%emt 00:02:21]} 
7.cxd5 {[%clk 01:42:09][%emt 00:00:07]} 7...exd5 {[%clk 01:36:38][%emt
00:00:07]} 8.Rc1 {[%clk 01:42:32][%emt 00:00:06]} 8...Nc6 {[%clk 01:32:31][%emt
00:04:37]} 9.Na4 {[%clk 01:42:34][%emt 00:00:28]} 9...b6 {[%clk 01:29:02][%emt
00:04:00]} 10.d4 {[%clk 01:38:47][%emt 00:04:17]} 10...cxd4 {[%clk
01:19:36][%emt 00:09:56]} 11.Nxd4 {[%clk 01:31:36][%emt 00:07:41]} 11...Bb4+ 
{[%clk 01:17:51][%emt 00:02:14]} 12.Bc3 {[%clk 01:31:13][%emt 00:00:53]} 
12...Bxc3+ {[%clk 01:17:21][%emt 00:01:00]} 13.Nxc3 {[%clk 01:31:25][%emt
00:00:17]} 13...Bb7 {[%clk 00:57:47][%emt 00:20:04]} 14.Be2 {[%clk
01:26:11][%emt 00:05:43]} 14...Nxd4 {[%clk 00:53:37][%emt 00:04:42]} 15.Qxd4 
{[%clk 01:26:34][%emt 00:00:07]} 15...Qe7 {[%clk 00:53:51][%emt 00:00:15]} 
16.O-O {[%clk 01:25:27][%emt 00:01:36]} 16...Rfc8 {[%clk 00:53:53][%emt
00:00:29]} 17.Rc2 {[%clk 01:04:44][%emt 00:21:13]} 17...Qc5 {[%clk
00:37:41][%emt 00:16:42]} 18.Rfc1 {[%clk 00:59:26][%emt 00:05:47]} 18...Qxd4 
{[%clk 00:36:16][%emt 00:01:56]} 19.exd4 {[%clk 00:58:51][%emt 00:01:05]} 
19...Kf8 {[%clk 00:31:07][%emt 00:05:39]} 20.Kf1 {[%clk 00:48:29][%emt
00:10:52]} 20...Rc7 {[%clk 00:27:47][%emt 00:03:50]} 21.Nb5 {[%clk
00:46:02][%emt 00:02:56]} 21...Rxc2 {[%clk 00:27:53][%emt 00:00:24]} 22.Rxc2 
{[%clk 00:46:29][%emt 00:00:03]} 22...Ne8 {[%clk 00:28:14][%emt 00:00:09]} 
23.Bd3 {[%clk 00:28:37][%emt 00:18:23]} 23...Ba6 {[%clk 00:23:47][%emt
00:04:56]} 24.Ke2 {[%clk 00:27:38][%emt 00:01:30]} 24...Bxb5 {[%clk
00:22:05][%emt 00:02:12]} 25.Bxb5 {[%emt 00:00:11]} 25...Nd6 {[%clk
00:21:23][%emt 00:01:02]} 26.Bd7 {[%clk 00:27:08][%emt 00:01:28]} 26...Ne8 
{[%clk 00:12:26][%emt 00:09:26]} 27.Bxe8 {[%clk 00:23:35][%emt 00:04:05]} 
27...Rxe8+ {[%clk 00:12:47][%emt 00:00:09]} 28.Kd3 {[%clk 00:24:01][%emt
00:00:04]} 28...f6 {[%clk 00:06:52][%emt 00:06:24]} 29.Rc6 {[%clk 00:21:51][%emt
00:02:39]} 29...Re1 {[%clk 00:06:47][%emt 00:00:36]} 30.h4 {[%clk 00:20:08][%emt
00:02:13]} 30...Rd1+ {[%clk 00:05:06][%emt 00:02:11]} 31.Ke2 {[%clk
00:18:53][%emt 00:01:46]} 31...Rxd4 {[%clk 00:05:31][%emt 00:00:05]} 32.Rc8+ 
{[%clk 00:19:20][%emt 00:00:03]} 32...Ke7 {[%clk 00:04:01][%emt 00:01:59]} 
33.Rc7+ {[%clk 00:19:45][%emt 00:00:05]} 33...Kd6 {[%clk 00:04:15][%emt
00:00:16]} 34.Rxa7 {[%clk 00:18:37][%emt 00:01:38]} 34...Rg4 {[%clk
00:03:07][%emt 00:01:38]} 35.g3 {[%clk 00:18:45][%emt 00:00:22]} 35...h5 {[%clk
00:03:24][%emt 00:00:13]} 36.Kd3 {[%clk 00:17:56][%emt 00:01:19]} ( 36.Kd3 
{[%clk 00:17:56] [%emt 00:01:19]} 36...Ke5 {[%emt 00:00:08]} ) 1/2-1/2

[Event "FIDE Grand Swiss 2023"]
[Site "Villa Marina, Douglas, Isle of Man"]
[Date "2023.11.05"]
[Round "11.26"]
[White "Ponomariov, Ruslan"]
[Black "Navara, David"]
[Result "1/2-1/2"]
[WhiteElo "2641"]
[BlackElo "2689"]
[EventDate "2023.10.25"]
[ECO "A07"]
[PlyCount "71"]
[BlackFideId "309095"]
[TimeControl "40/100 + 20/50 + 15 + 30s/move"]
[WhiteFideId "14103320"]

1.Nf3 {[%clk 01:40:56][%emt 00:00:03]} 1...d5 {[%clk 01:40:25][%emt 00:00:36]} 
2.g3 {[%clk 01:41:08][%emt 00:00:18]} 2...g6 {[%clk 01:40:34][%emt 00:00:21]} 
3.Bg2 {[%clk 01:40:38][%emt 00:00:59]} 3...Bg7 {[%clk 01:40:55][%emt 00:00:10]} 
4.d4 {[%clk 01:40:43][%emt 00:00:25]} 4...Nf6 {[%clk 01:41:20][%emt 00:00:05]} 
5.O-O {[%clk 01:38:57][%emt 00:02:15]} 5...O-O {[%clk 01:41:33][%emt 00:00:17]} 
6.c3 {[%clk 01:36:30][%emt 00:02:57]} 6...Nbd7 {[%clk 01:39:01][%emt 00:03:04]} 
7.a4 {[%clk 01:34:41][%emt 00:02:18]} 7...b6 {[%clk 01:34:01][%emt 00:05:31]} 
8.a5 {[%clk 01:31:18][%emt 00:03:53]} 8...Ba6 {[%clk 01:30:53][%emt 00:03:37]} 
9.Re1 {[%clk 01:26:54][%emt 00:04:54]} 9...c5 {[%clk 01:26:10][%emt 00:05:13]} 
10.Bf4 {[%clk 01:25:09][%emt 00:02:14]} 10...Nh5 {[%clk 01:22:18][%emt
00:04:22]} 11.Be3 {[%clk 01:23:02][%emt 00:02:38]} 11...e6 {[%clk 01:22:14][%emt
00:00:34]} 12.Qc1 {[%clk 01:19:58][%emt 00:03:33]} 12...Qc7 {[%clk
01:19:07][%emt 00:03:38]} 13.Bh6 {[%clk 01:18:02][%emt 00:02:26]} 13...bxa5 
{[%clk 01:13:08][%emt 00:06:29]} 14.Bxg7 {[%clk 01:17:45][%emt 00:00:47]} 
14...Kxg7 {[%clk 01:11:56][%emt 00:01:42]} 15.Nbd2 {[%clk 01:17:51][%emt
00:00:23]} 15...Rab8 {[%clk 01:05:30][%emt 00:06:57]} 16.Ra2 {[%clk
01:05:47][%emt 00:12:34]} 16...cxd4 {[%clk 00:53:38][%emt 00:12:22]} 17.Nxd4 
{[%clk 01:05:09][%emt 00:01:07]} 17...e5 {[%clk 00:53:12][%emt 00:00:57]} 
18.N4b3 {[%clk 00:52:16][%emt 00:13:22]} 18...Bc4 {[%clk 00:48:52][%emt
00:04:51]} 19.Ra3 {[%clk 00:49:57][%emt 00:02:49]} 19...a4 {[%clk 00:42:14][%emt
00:07:08]} 20.Nxc4 {[%clk 00:48:03][%emt 00:02:24]} 20...Qxc4 {[%clk
00:39:00][%emt 00:03:45]} 21.Nd2 {[%clk 00:44:45][%emt 00:03:47]} 21...Qb5 
{[%clk 00:38:29][%emt 00:01:00]} 22.c4 {[%clk 00:40:06][%emt 00:05:10]} 
22...dxc4 {[%clk 00:38:03][%emt 00:00:56]} 23.Nxc4 {[%clk 00:40:25][%emt
00:00:11]} 23...Rfc8 {[%clk 00:35:51][%emt 00:02:42]} 24.Rc3 {[%clk
00:40:18][%emt 00:00:36]} 24...Nhf6 {[%clk 00:35:40][%emt 00:00:41]} 25.Qc2 
{[%clk 00:37:25][%emt 00:03:23]} 25...Nd5 {[%clk 00:24:35][%emt 00:11:35]} 
26.Bxd5 {[%clk 00:34:23][%emt 00:03:32]} 26...Qxd5 {[%clk 00:24:58][%emt
00:00:07]} 27.Qxa4 {[%clk 00:32:29][%emt 00:02:24]} 27...Rxb2 {[%clk
00:22:46][%emt 00:02:42]} 28.Rd1 {[%clk 00:25:03][%emt 00:07:55]} 28...Nc5 
{[%clk 00:21:40][%emt 00:01:36]} 29.Nxb2 {[%clk 00:24:00][%emt 00:01:34]} 
29...Nxa4 {[%clk 00:21:58][%emt 00:00:12]} 30.Rxd5 {[%clk 00:24:27][%emt
00:00:03]} 30...Nxc3 {[%clk 00:22:14][%emt 00:00:13]} 31.Rxe5 {[%clk
00:24:54][%emt 00:00:03]} 31...Kf6 {[%clk 00:20:08][%emt 00:02:36]} 32.Ra5 
{[%clk 00:24:19][%emt 00:01:05]} 32...Nxe2+ {[%clk 00:19:35][%emt 00:01:03]} 
33.Kf1 {[%clk 00:24:43][%emt 00:00:07]} 33...Rc1+ {[%clk 00:18:30][%emt
00:01:34]} 34.Kxe2 {[%clk 00:25:02][%emt 00:00:12]} 34...Rc2+ {[%clk
00:18:57][%emt 00:00:03]} 35.Kf3 {[%clk 00:25:28][%emt 00:00:05]} 35...Rxb2 
{[%clk 00:19:22][%emt 00:00:04]} 36.Rxa7 {[%clk 00:25:54][%emt 00:00:04]} ( 
36.Rxa7 {[%clk 00:25:54] [%emt 00:00:04]} 36...Ke5 {[%clk 00:19:17] [%emt
00:00:07]} ) 1/2-1/2